fUSD/lending_fUSD_20241003
["ID","MTS","AMOUNT","RATE_DAILY","PERIOD"]
[339796231,1727987567649,-500.0,0.00036986,120]
[339796232,1727987567660,-1135.51,0.00036986,120]
[339796233,1727987567671,-26307.75,0.00036986,120]
[339796234,1727987567680,-1359.32,0.00036986,120]
[339796235,1727987567690,-920.13,0.00036986,120]
[339796236,1727987567698,-2373.28,0.00036986,120]
[339796237,1727987567708,-723.9,0.00036986,120]
[339796238,1727987567719,-500.0,0.00036986,120]
[339796239,1727987567729,-683.05,0.00036986,120]
[339796240,1727987567739,-163.98395069,0.00036986,120]
[339796241,1727987567748,-1328.33,0.00036986,120]
[339796242,1727987567758,-1718.99,0.00036986,120]
[339796243,1727987567768,-500.0,0.00036986,120]
[339796244,1727987567778,-2515.59,0.00036986,120]
[339796245,1727987567787,-953.41,0.00036986,120]
[339796246,1727987567798,-876.22,0.00036986,120]
[339796247,1727987567808,-1281.35,0.00036986,120]
[339796248,1727987567817,-2264.01,0.00036986,120]
[339796249,1727987567827,-2588.02,0.00036986,120]
[339796250,1727987567836,-1057.1,0.00036986,120]
[339796251,1727987567846,-1543.66,0.00036986,120]
[339796252,1727987567856,-567.28,0.00036986,120]
[339796253,1727987567870,-1173.73,0.00036986,120]
[339796254,1727987567879,-622.45,0.00036986,120]
[339796255,1727987567889,-831.03,0.00036986,120]
[339796256,1727987567898,-574.46,0.00036986,120]
[339796257,1727987567909,-605.72,0.00036986,120]
[339796258,1727987567919,-656.14,0.00036986,24]
[339796259,1727987567929,-1059.55,0.00036986,120]
[339796260,1727987567939,-999.57,0.00036986,120]
[339796261,1727987567952,-1114.36,0.00036986,120]
[339796262,1727987567963,-500.0,0.00036986,120]
[339796263,1727987567972,-2557.98,0.00036986,120]
[339796264,1727987567982,-985.85,0.00036986,120]
[339796265,1727987567992,-2619.08,0.00036986,120]
[339796266,1727987568002,-2196.8,0.00036986,120]
[339796267,1727987568011,-1368.57,0.00036986,120]
[339796268,1727987568020,-534.46,0.00036986,120]
[339796269,1727987568030,-623.45,0.00036986,120]
[339796270,1727987568040,-1760.97,0.00036986,120]
[339796271,1727987568050,-4833.89,0.00036986,120]
[339796272,1727987568060,-1036.03,0.00036986,120]
[339796273,1727987568069,-613.95,0.00036986,120]
[339796274,1727987568079,-1295.57,0.00036986,120]
[339796275,1727987568088,-1100.59,0.00036986,120]
[339796276,1727987568098,-1437.23,0.00036986,120]
[339796277,1727987568108,-581.64,0.00036986,120]
[339796278,1727987568117,-500.0,0.00036986,120]
[339796279,1727987568127,-1584.05,0.00036986,120]
[339796280,1727987568137,-500.0,0.00036986,120]
[339796281,1727987568146,-1739.53,0.00036986,120]
[339796282,1727987568156,-780.59,0.00036986,120]
[339796283,1727987568166,-500.0,0.00036986,120]
[339796284,1727987568175,-10179.37,0.00036986,120]
[339796285,1727987568184,-1002.66,0.00036986,120]
[339796286,1727987568194,-567.89,0.00036986,120]
[339796287,1727987568204,-504.47,0.00036986,120]
[339796288,1727987568214,-859.91,0.00036986,120]
[339796289,1727987568224,-8270.07,0.00036986,21]
[339796290,1727987568233,-669.41,0.00036986,120]
[339796291,1727987568242,-4586.08,0.00036986,120]
[339796292,1727987568252,-2304.02,0.00036986,120]
[339796293,1727987568262,-631.12,0.00036986,120]
[339796294,1727987568271,-1138.44,0.00036986,120]
[339796295,1727987568281,-811.67,0.00036986,120]
[339796296,1727987568291,-536.29,0.00036986,120]
[339796297,1727987568301,-994.04,0.00036986,120]
[339796298,1727987568311,-50000.0,0.00037,37]
[339796299,1727987568321,-50000.0,0.00037,32]
[339796300,1727987568331,-10000.0,0.00037,5]
[339796301,1727987568341,-5000.0,0.00037,30]
[339796302,1727987568350,-9848.62464254,0.00037,2]
[339796303,1727987568360,-1000000.0,0.00037,120]
[339796304,1727987568370,-10000.0,0.00037,120]
[339796305,1727987568380,-20000.0,0.00037,90]
[339796306,1727987568390,-936.109796,0.00037,38]
[339796307,1727987568400,-313315.76815872,0.00037,5]
[339796308,1727987568410,-2251.5019805,0.00037124,7]
[339796309,1727987568420,-3007.50576663,0.00037124,7]
[339796310,1727987568430,-2899.87242423,0.00037124,7]
[339796311,1727987568439,-2110.0,0.00037198,2]
[339796312,1727987568451,-500.0,0.0003726,120]
[339796313,1727987568674,-1830.04,0.0003726,120]
[339796314,1727987568684,-1465.14,0.0003726,120]
[339796315,1727987568694,-731.74,0.0003726,120]
[339796316,1727987568703,-500.0,0.0003726,120]
[339796317,1727987568714,-500.0,0.0003726,120]
[339796318,1727987568724,-1375.31,0.0003726,120]
[339796319,1727987568733,-668.57,0.0003726,120]
[339796320,1727987568743,-500.0,0.0003726,120]
[339796321,1727987568753,-1062.68,0.0003726,120]
[339796322,1727987568762,-1108.65,0.0003726,120]
[339796323,1727987568772,-1917.75,0.0003726,120]
[339796324,1727987568781,-1239.66,0.0003726,120]
[339796325,1727987568791,-749.5,0.0003726,120]
[339796326,1727987568801,-1219.3,0.0003726,120]
[339796327,1727987568810,-1706.35,0.0003726,120]
[339796328,1727987568819,-1816.28,0.0003726,120]
[339796329,1727987568828,-608.59,0.0003726,120]
[339796330,1727987568838,-688.2,0.0003726,120]
[339796331,1727987568847,-818.32,0.0003726,120]
[339796332,1727987568856,-2173.75,0.0003726,120]
[339796333,1727987568867,-721.06,0.0003726,120]
[339796334,1727987568876,-2649.5,0.0003726,120]
[339796335,1727987568885,-500.0,0.0003726,120]
[339796336,1727987568895,-500.0,0.0003726,120]
[339796337,1727987568904,-500.0,0.0003726,120]
[339796338,1727987568915,-952.32,0.0003726,120]
[339796339,1727987568924,-500.0,0.0003726,15]
[339796340,1727987568934,-508.75,0.0003726,120]
[339796341,1727987568945,-500.0,0.0003726,120]
[339796342,1727987568956,-2782.16,0.0003726,120]
[339796343,1727987568967,-500.0,0.0003726,120]
[339796344,1727987568976,-500.0,0.0003726,120]
[339796345,1727987568986,-799.66,0.0003726,120]
[339796346,1727987568996,-500.0,0.0003726,120]
[339796347,1727987569006,-528.54,0.0003726,120]
[339796348,1727987569015,-500.0,0.0003726,120]
[339796349,1727987569025,-1116.48,0.0003726,120]
[339796350,1727987569034,-500.0,0.0003726,120]
[339796351,1727987569044,-500.0,0.0003726,120]
[339796352,1727987569053,-667.6,0.0003726,120]
[339796353,1727987569063,-516.86,0.0003726,120]
[339796354,1727987569072,-577.36,0.0003726,120]
[339796355,1727987569081,-500.0,0.0003726,120]
[339796356,1727987569091,-1181.76,0.0003726,120]
[339796357,1727987569101,-2275.0,0.0003726,120]
[339796358,1727987569110,-1059.01,0.0003726,120]
[339796359,1727987569120,-500.0,0.0003726,120]
[339796360,1727987569130,-678.32,0.0003726,120]
[339796361,1727987569139,-500.0,0.0003726,120]
[339796362,1727987569149,-908.96,0.0003726,120]
[339796363,1727987569158,-806.47,0.0003726,120]
[339796364,1727987569168,-1850.2,0.0003726,120]
[339796365,1727987569177,-500.0,0.0003726,120]
[339796366,1727987569187,-500.0,0.0003726,120]
[339796367,1727987569197,-532.65,0.0003726,120]
[339796368,1727987569207,-500.0,0.0003726,120]
[339796369,1727987569218,-500.0,0.0003726,120]
[339796370,1727987569228,-951.98,0.0003726,120]
[339796371,1727987569238,-3113.1,0.0003726,120]
[339796372,1727987569248,-952.18,0.0003726,120]
[339796373,1727987569258,-1578.27,0.0003726,120]
[339796374,1727987569267,-799.85,0.0003726,120]
[339796375,1727987569277,-708.6,0.0003726,120]
[339796376,1727987569287,-584.82,0.0003726,120]
[339796377,1727987569296,-560.83,0.0003726,120]
[339796378,1727987569306,-610.78,0.0003726,120]
[339796379,1727987569316,-1249.01,0.0003726,120]
[339796380,1727987569325,-500.0,0.0003726,120]
[339796381,1727987569335,-1225.26,0.0003726,120]
[339796382,1727987569345,-911.79,0.0003726,120]
[339796383,1727987569355,-817.82,0.0003726,120]
[339796384,1727987569364,-517.59,0.0003726,120]
[339796385,1727987569374,-1292.49,0.0003726,7]
[339796386,1727987569383,-500.0,0.0003726,120]
[339796387,1727987569393,-762.72,0.0003726,120]
[339796388,1727987569403,-1184.87,0.0003726,120]
[339796389,1727987569412,-1701.57,0.0003726,120]
[339796390,1727987569422,-714.2,0.0003726,120]
[339796391,1727987569432,-1396.71,0.0003726,120]
[339796392,1727987569441,-676.51,0.0003726,120]
[339796393,1727987569451,-1713.42,0.0003726,120]
[339796394,1727987569461,-543.4,0.0003726,120]
[339796395,1727987569475,-615.69,0.0003726,120]
[339796396,1727987569486,-675.57,0.0003726,120]
[339796397,1727987569495,-822.0,0.0003726,120]
[339796398,1727987569504,-500.0,0.0003726,120]
[339796399,1727987569514,-781.4,0.0003726,120]
[339796400,1727987569524,-747.69,0.0003726,120]
[339796401,1727987569533,-500.0,0.0003726,120]
[339796402,1727987569543,-911.34,0.0003726,120]
[339796403,1727987569553,-617.77,0.0003726,120]
[339796404,1727987569563,-500.0,0.0003726,120]
[339796405,1727987569573,-1099.61,0.0003726,120]
[339796406,1727987569583,-179.64792298,0.0003726,120]
[339796407,1727987569592,-1245.73,0.0003726,120]
[339796408,1727987569602,-605.0,0.0003726,120]
[339796409,1727987569612,-614.52,0.0003726,120]
[339796410,1727987569622,-570.35,0.0003726,120]
[339796411,1727987569633,-806.75,0.0003726,120]
[339796412,1727987569643,-761.4,0.0003726,120]
[339796413,1727987569653,-500.0,0.0003726,120]
[339796414,1727987569664,-1016.56,0.0003726,120]
[339796415,1727987569674,-500.0,0.0003726,120]
[339796416,1727987569684,-908.19,0.0003726,120]
[339796417,1727987569694,-500.0,0.0003726,120]
[339796418,1727987569704,-650.02,0.0003726,120]
[339796419,1727987569715,-2907.54,0.0003726,120]
[339796420,1727987569731,-1955.84,0.0003726,120]
[339796421,1727987569741,-666.23,0.0003726,120]
[339796422,1727987569752,-619.0,0.0003726,120]
[339796423,1727987569762,-1476.07,0.0003726,120]
[339796424,1727987569772,-500.0,0.0003726,120]
[339796425,1727987569782,-200.0,0.0003726,7]
[339796426,1727987569792,-664.13,0.0003726,120]
[339796427,1727987569801,-580.92,0.0003726,120]
[339796428,1727987569811,-559.23,0.0003726,120]
[339796429,1727987569821,-682.12,0.0003726,120]
[339796430,1727987569831,-662.07,0.0003726,120]
[339796431,1727987569840,-1017.64,0.0003726,120]
[339796432,1727987569851,-1843.32,0.0003726,120]
[339796433,1727987569861,-929.85,0.0003726,120]
[339796434,1727987569874,-903.96,0.0003726,120]
[339796435,1727987569884,-1244.9,0.0003726,120]
[339796436,1727987569893,-2059.5,0.0003726,120]
[339796437,1727987569902,-1208.85,0.0003726,120]
[339796438,1727987569912,-1392.18,0.0003726,120]
[339796439,1727987569922,-1754.22,0.0003726,120]
[339796440,1727987569931,-3096.26,0.0003726,120]
[339796441,1727987569941,-838.34,0.0003726,120]
[339796442,1727987569953,-500.0,0.0003726,120]
[339796443,1727987569965,-767.37,0.0003726,120]
[339796444,1727987569975,-1262.93,0.0003726,120]
[339796445,1727987569984,-546.33,0.0003726,120]
[339796446,1727987569994,-900.49,0.0003726,120]
[339796447,1727987570006,-1915.72,0.0003726,120]
[339796448,1727987570015,-871.88,0.0003726,120]
[339796449,1727987570025,-542.05,0.0003726,120]
[339796450,1727987570035,-1246.58,0.0003726,120]
[339796451,1727987570044,-755.2,0.0003726,120]
[339796452,1727987570054,-515.39,0.0003726,120]
[339796453,1727987570063,-1449.61,0.0003726,120]
[339796454,1727987570073,-615.97,0.0003726,120]
[339796455,1727987570083,-500.0,0.0003726,120]
[339796456,1727987570093,-828.98,0.0003726,120]
[339796457,1727987570103,-522.48,0.0003726,120]
[339796458,1727987570113,-769.93,0.0003726,120]
[339796459,1727987570125,-500.0,0.0003726,120]
[339796460,1727987570135,-1535.42,0.0003726,120]
[339796461,1727987570144,-692.01,0.0003726,120]
[339796462,1727987570155,-232.92195501,0.0003726,120]
[339796463,1727987570164,-500.0,0.0003726,120]
[339796464,1727987570174,-617.57,0.0003726,120]
[339796465,1727987570184,-1322.47,0.0003726,120]
[339796466,1727987570195,-3041.51,0.0003726,120]
[339796467,1727987570204,-685.28,0.0003726,120]
[339796468,1727987570216,-1088.33,0.0003726,120]
[339796469,1727987570225,-678.3,0.0003726,120]
[339796470,1727987570235,-809.97,0.0003726,120]
[339796471,1727987570245,-617.35,0.0003726,120]
[339796472,1727987570255,-500.0,0.0003726,120]
[339796473,1727987570266,-504.49,0.0003726,120]
[339796474,1727987570276,-1000.0,0.0003726,120]
[339796475,1727987570286,-2582.55,0.0003726,14]
[339796476,1727987570296,-821.22,0.0003726,120]
[339796477,1727987570306,-1192.92,0.0003726,120]
[339796478,1727987570316,-752.83,0.0003726,120]
[339796479,1727987570326,-2036.76,0.0003726,2]
[339796480,1727987570336,-343.32699997,0.0003726,120]
[339796481,1727987570346,-696.33,0.0003726,120]
[339796482,1727987570358,-1822.29,0.0003726,120]
[339796483,1727987570367,-500.0,0.0003726,120]
[339796484,1727987570377,-1595.23,0.0003726,120]
[339796485,1727987570387,-1676.96,0.0003726,120]
[339796486,1727987570397,-500.0,0.0003726,120]
[339796487,1727987570407,-1430.65,0.0003726,120]
[339796488,1727987570416,-307.39787661,0.0003726,120]
[339796489,1727987570425,-1022.58,0.0003726,120]
[339796490,1727987570435,-572.51,0.0003726,120]
[339796491,1727987570445,-743.36,0.0003726,120]
[339796492,1727987570456,-534.34,0.0003726,120]
[339796493,1727987570466,-722.75,0.0003726,120]
[339796494,1727987570476,-891.75,0.0003726,120]
[339796495,1727987570485,-2933.87,0.0003726,120]
[339796496,1727987570495,-734.12,0.0003726,120]
[339796497,1727987570504,-359.27347661,0.0003726,120]
[339796498,1727987570514,-830.44,0.0003726,120]
[339796499,1727987570523,-2736.92,0.0003726,120]
[339796500,1727987570533,-2840.63,0.0003726,120]
[339796501,1727987570542,-1668.6,0.0003726,120]
[339796502,1727987570551,-963.2,0.0003726,120]
[339796503,1727987570560,-3064.64,0.0003726,120]
[339796504,1727987570570,-895.53,0.0003726,120]
[339796505,1727987570580,-411.90077144,0.0003726,120]
[339796506,1727987570590,-603.25,0.0003726,120]
[339796507,1727987570599,-893.66,0.0003726,120]
[339796508,1727987570609,-1265.22,0.0003726,120]
[339796509,1727987570618,-648.93,0.0003726,120]
[339796510,1727987570628,-702.69,0.0003726,120]
[339796511,1727987570637,-912.75,0.0003726,120]
[339796512,1727987570648,-625.95,0.0003726,120]
[339796513,1727987570657,-500.0,0.0003726,120]
[339796514,1727987570667,-589.87,0.0003726,120]
[339796515,1727987570677,-904.15,0.0003726,120]
[339796516,1727987570687,-809.38,0.0003726,120]
[339796517,1727987570696,-1583.67,0.0003726,120]
[339796518,1727987570705,-2849.48,0.0003726,120]
[339796519,1727987570715,-1559.78,0.0003726,120]
[339796520,1727987570724,-526.9,0.0003726,120]
[339796521,1727987570734,-522.66,0.0003726,120]
[339796522,1727987570743,-887.97,0.0003726,120]
[339796523,1727987570752,-608.69,0.0003726,120]
[339796524,1727987570762,-1196.23,0.0003726,120]
[339796525,1727987570771,-1435.23,0.0003726,120]
[339796526,1727987570780,-1891.17,0.0003726,120]
[339796527,1727987570790,-734.62,0.0003726,120]
[339796528,1727987570799,-1907.44,0.0003726,120]
[339796529,1727987570809,-500.0,0.0003726,5]
[339796530,1727987570818,-954.92,0.0003726,30]
[339796531,1727987570828,-760.37,0.0003726,120]
[339796532,1727987570837,-1267.83,0.0003726,120]
[339796533,1727987570847,-500.0,0.0003726,120]
[339796534,1727987570857,-3152.28,0.0003726,120]
[339796535,1727987570870,-334.63968476,0.0003726,120]
[339796536,1727987570881,-692.31,0.0003726,120]
[339796537,1727987570890,-4273.85,0.0003726,2]
[339796538,1727987570900,-2240.67,0.0003726,120]
[339796539,1727987570910,-566.42,0.0003726,120]
[339796540,1727987570919,-1375.15,0.0003726,120]
[339796541,1727987570928,-1352.94,0.0003726,120]
[339796542,1727987570938,-2143.59,0.0003726,120]
[339796543,1727987570949,-500.0,0.0003726,120]
[339796544,1727987570959,-2552.25,0.0003726,120]
[339796545,1727987570968,-807.0,0.0003726,120]
[339796546,1727987570978,-500.0,0.0003726,120]
[339796547,1727987570988,-1929.43,0.0003726,120]
[339796548,1727987570997,-500.0,0.0003726,120]
[339796549,1727987571008,-687.7,0.0003726,120]
[339796550,1727987571017,-685.66,0.0003726,120]
[339796551,1727987571026,-500.0,0.0003726,120]
[339796552,1727987571036,-500.0,0.0003726,120]
[339796553,1727987571047,-575.11919408,0.0003726,120]
[339796554,1727987571056,-1124.73,0.0003726,120]
[339796555,1727987571066,-500.0,0.0003726,120]
[339796556,1727987571076,-500.0,0.0003726,120]
[339796557,1727987571086,-1267.04,0.0003726,120]
[339796558,1727987571096,-1073.96,0.0003726,120]
[339796559,1727987571106,-515.88,0.0003726,120]
[339796560,1727987571116,-924.47,0.0003726,120]
[339796561,1727987571126,-687.49,0.0003726,120]
[339796562,1727987571220,-3529.62,0.0003726,120]
[339796563,1727987571231,-500.0,0.0003726,120]
[339796564,1727987571241,-2122.92,0.0003726,120]
[339796565,1727987571251,-1443.8,0.0003726,120]
[339796566,1727987571260,-583.93,0.0003726,120]
[339796567,1727987571270,-1130.17,0.0003726,120]
[339796568,1727987571280,-598.1,0.0003726,120]
[339796569,1727987571289,-500.0,0.0003726,120]
[339796570,1727987571299,-512.25,0.0003726,120]
[339796571,1727987571309,-739.66,0.0003726,120]
[339796572,1727987571318,-2221.7,0.0003726,120]
[339796573,1727987571327,-753.47,0.0003726,120]
[339796574,1727987571337,-878.47,0.0003726,120]
[339796575,1727987571348,-2105.23,0.0003726,120]
[339796576,1727987571357,-880.23,0.0003726,120]
[339796577,1727987571368,-1101.24,0.0003726,120]
[339796578,1727987571378,-500.0,0.0003726,120]
[339796579,1727987571389,-594.49,0.0003726,120]
[339796580,1727987571399,-500.0,0.0003726,120]
[339796581,1727987571409,-1746.33,0.0003726,120]
[339796582,1727987571420,-983.59,0.0003726,120]
[339796583,1727987571430,-1535.26,0.0003726,120]
[339796584,1727987571442,-3156.06,0.0003726,120]
[339796585,1727987571452,-889.14,0.0003726,120]
[339796586,1727987571463,-754.45,0.0003726,120]
[339796587,1727987571473,-640.32,0.0003726,120]
[339796588,1727987571483,-2375.19,0.0003726,120]
[339796589,1727987571492,-580.84,0.0003726,120]
[339796590,1727987571502,-652.15,0.0003726,120]
[339796591,1727987571511,-2171.15,0.0003726,120]
[339796592,1727987571520,-970.9,0.0003726,120]
[339796593,1727987571530,-576.98,0.0003726,120]
[339796594,1727987571539,-2322.76,0.0003726,120]
[339796595,1727987571548,-2446.1,0.0003726,120]
[339796596,1727987571558,-500.0,0.0003726,120]
[339796597,1727987571568,-569.39,0.0003726,120]
[339796598,1727987571578,-865.83,0.0003726,120]
[339796599,1727987571587,-500.0,0.0003726,120]
[339796600,1727987571597,-559.14,0.0003726,120]
[339796601,1727987571606,-500.0,0.0003726,120]
[339796602,1727987571616,-526.15,0.0003726,120]
[339796603,1727987571625,-500.0,0.0003726,120]
[339796604,1727987571635,-500.0,0.0003726,120]
[339796605,1727987571644,-1022.47,0.0003726,120]
[339796606,1727987571653,-1404.02,0.0003726,120]
[339796607,1727987571662,-500.0,0.0003726,120]
[339796608,1727987571672,-641.91,0.0003726,120]
[339796609,1727987571682,-926.29,0.0003726,120]
[339796610,1727987571692,-796.9,0.0003726,120]
[339796611,1727987571702,-2021.14,0.0003726,120]
[339796612,1727987571711,-3420.05,0.0003726,120]
[339796613,1727987571722,-500.0,0.0003726,120]
[339796614,1727987571732,-585.28,0.0003726,120]
[339796615,1727987571741,-920.88,0.0003726,120]
[339796616,1727987571750,-1372.22,0.0003726,120]
[339796617,1727987571760,-501.73,0.0003726,120]
[339796618,1727987571770,-1014.09,0.0003726,120]
[339796619,1727987571780,-2342.53,0.0003726,120]
[339796620,1727987571789,-849.67,0.0003726,120]
[339796621,1727987571799,-500.0,0.0003726,120]
[339796622,1727987571809,-503.33,0.0003726,120]
[339796623,1727987571819,-650.32,0.0003726,120]
[339796624,1727987571828,-619.95,0.0003726,120]
[339796625,1727987571837,-4513.04,0.0003726,120]
[339796626,1727987571847,-697.86,0.0003726,120]
[339796627,1727987571856,-1906.45,0.0003726,120]
[339796628,1727987571866,-500.0,0.0003726,120]
[339796629,1727987571877,-1342.8,0.0003726,120]
[339796630,1727987571887,-500.0,0.0003726,120]
[339796631,1727987571896,-999.0,0.0003726,120]
[339796632,1727987571905,-2820.31,0.0003726,120]
[339796633,1727987571916,-4469.7,0.0003726,120]
[339796634,1727987571925,-1714.59,0.0003726,120]
[339796635,1727987571935,-1567.97,0.0003726,120]
[339796636,1727987571945,-858.96,0.0003726,120]
[339796637,1727987571956,-1071.24,0.0003726,120]
[339796638,1727987571966,-1083.26,0.0003726,120]
[339796639,1727987571976,-1923.73,0.0003726,120]
[339796640,1727987571985,-3953.73,0.0003726,120]
[339796641,1727987571994,-646.54,0.0003726,120]
[339796642,1727987572003,-1541.86,0.0003726,120]
[339796643,1727987572013,-2326.51,0.0003726,120]
[339796644,1727987572022,-825.35,0.0003726,120]
[339796645,1727987572031,-1401.87,0.0003726,120]
[339796646,1727987572041,-8162.3,0.0003726,120]
[339796647,1727987572054,-2202.86,0.0003726,3]
[339796648,1727987572063,-1721.6,0.0003726,120]
[339796649,1727987572073,-1824.09,0.0003726,120]
[339796650,1727987572082,-797.25,0.0003726,120]
[339796651,1727987572092,-3694.14,0.0003726,120]
[339796652,1727987572101,-348.04398695,0.0003726,120]
[339796653,1727987572111,-648.29,0.0003726,120]
[339796654,1727987572120,-1962.84,0.0003726,120]
[339796655,1727987572130,-770.99,0.0003726,120]
[339796656,1727987572140,-1812.58,0.0003726,120]
[339796657,1727987572150,-1106.97,0.0003726,120]
[339796658,1727987572159,-995.24,0.0003726,120]
[339796659,1727987572168,-1533.42,0.0003726,120]
[339796660,1727987572177,-1245.45,0.0003726,120]
[339796661,1727987572187,-2708.28,0.0003726,120]
[339796662,1727987572196,-919.76,0.0003726,120]
[339796663,1727987572206,-1028.68,0.0003726,120]
[339796664,1727987572216,-2392.87,0.0003726,120]
[339796665,1727987572226,-1219.91,0.0003726,120]
[339796666,1727987572235,-1971.05,0.0003726,120]
[339796667,1727987572244,-967.14,0.0003726,120]
[339796668,1727987572253,-11039.47,0.0003726,120]
[339796669,1727987572263,-1835.01,0.0003726,120]
[339796670,1727987572274,-647.95,0.0003726,120]
[339796671,1727987572283,-1066.51,0.0003726,120]
[339796672,1727987572293,-2065.61,0.0003726,120]
[339796673,1727987572302,-2041.33,0.0003726,120]
[339796674,1727987572312,-275.72443775,0.0003726,120]
[339796675,1727987572321,-500.0,0.0003726,120]
[339796676,1727987572331,-701.71,0.0003726,120]
[339796677,1727987572341,-512.38,0.0003726,120]
[339796678,1727987572350,-527.76,0.0003726,120]
[339796679,1727987572360,-527.0,0.0003726,120]
[339796680,1727987572370,-1302.4,0.0003726,120]
[339796681,1727987572379,-968.42,0.0003726,120]
[339796682,1727987572389,-1041.18,0.0003726,120]
[339796683,1727987572399,-500.0,0.0003726,120]
[339796684,1727987572408,-2058.43,0.0003726,120]
[339796685,1727987572418,-1510.82,0.0003726,120]
[339796686,1727987572427,-2566.99,0.0003726,120]
[339796687,1727987572437,-1635.85,0.0003726,120]
[339796688,1727987572447,-500.52,0.0003726,120]
[339796689,1727987572456,-1123.06,0.0003726,120]
[339796690,1727987572466,-1766.39,0.0003726,120]
[339796691,1727987572475,-1421.18,0.0003726,120]
[339796692,1727987572485,-2301.76,0.0003726,120]
[339796693,1727987572495,-1093.77,0.0003726,120]
[339796694,1727987572505,-2041.08,0.0003726,120]
[339796695,1727987572515,-1056.72,0.0003726,120]
[339796696,1727987572525,-500.0,0.0003726,120]
[339796697,1727987572535,-4824.18,0.0003726,120]
[339796698,1727987572546,-575.99,0.0003726,120]
[339796699,1727987572557,-2539.88,0.0003726,120]
[339796700,1727987572566,-1058.32,0.0003726,120]
[339796701,1727987572576,-1031.81,0.0003726,120]
[339796702,1727987572585,-500.0,0.0003726,120]
[339796703,1727987572595,-2770.27,0.0003726,120]
[339796704,1727987572604,-2126.28,0.0003726,120]
[339796705,1727987572614,-3109.58,0.0003726,120]
[339796706,1727987572624,-1989.39,0.0003726,120]
[339796707,1727987572633,-2838.83,0.0003726,120]
[339796708,1727987572643,-2454.73,0.0003726,120]
[339796709,1727987572653,-2489.9,0.0003726,120]
[339796710,1727987572663,-1548.63,0.0003726,120]
[339796711,1727987572673,-1539.86,0.0003726,120]
[339796712,1727987572682,-500.0,0.0003726,120]
[339796713,1727987572691,-1135.51,0.0003726,120]
[339796714,1727987572701,-751.5,0.0003726,120]
[339796715,1727987572710,-26307.75,0.0003726,120]
[339796716,1727987572720,-1359.32,0.0003726,120]
[339796717,1727987572729,-920.13,0.0003726,120]
[339796718,1727987572738,-2373.28,0.0003726,120]
[339796719,1727987572748,-723.9,0.0003726,120]
[339796720,1727987572758,-500.0,0.0003726,120]
[339796721,1727987572767,-683.05,0.0003726,120]
[339796722,1727987572777,-1328.33,0.0003726,120]
[339796723,1727987572786,-1718.99,0.0003726,120]
[339796724,1727987572795,-500.0,0.0003726,120]
[339796725,1727987572804,-2515.59,0.0003726,120]
[339796726,1727987572814,-953.41,0.0003726,120]
[339796727,1727987572823,-876.22,0.0003726,120]
[339796728,1727987572833,-2264.01,0.0003726,120]
[339796729,1727987572842,-2588.02,0.0003726,120]
[339796730,1727987572852,-1281.35,0.0003726,120]